bitfinex/quotes_ETHUSD_20250827
["timestamp","ask_amount","ask_price","bid_price","bid_amount"]
[1756330912786,6.93280434,4548.1,4548.0,0.004]
[1756330912963,6.90532034,4548.1,4548.0,0.004]
[1756330913684,6.14432034,4548.1,4548.0,0.3049]
[1756330913985,6.90532034,4548.1,4548.0,0.004]
[1756330914573,2.19876868,4548.0,4547.8,0.00963139]
[1756330914761,0.02748521,4547.9,4547.8,0.00963139]
[1756330914953,0.78848521,4547.9,4547.8,0.00963139]
[1756330915454,2.98730224,4547.9,4547.8,0.00963139]
[1756330918271,6.82230224,4547.9,4547.8,0.00963139]
[1756330918471,6.79481703,4547.9,4547.8,0.00963139]
[1756330920971,6.33391703,4547.9,4547.8,0.00963139]
[1756330922593,6.03381703,4547.9,4547.8,0.00963139]
[1756330922890,6.33391703,4547.9,4547.8,0.00963139]
[1756330925093,6.03281703,4547.9,4547.8,0.31053139]
[1756330926866,6.03281703,4547.9,4547.8,0.00963139]
[1756330930411,6.33291703,4547.9,4547.8,0.00963139]
[1756330931011,2.49891703,4547.9,4547.8,0.00963139]
[1756330931314,6.36040224,4547.9,4547.8,0.00963139]
[1756330931496,6.33291703,4547.9,4547.8,0.00963139]
[1756330931697,6.03181703,4547.9,4547.8,0.31053139]
[1756330933883,6.03181703,4547.9,4547.8,0.31453139]
[1756330934216,6.03281703,4547.9,4547.8,0.31453139]
[1756330935817,2.19981703,4547.9,4547.8,0.77783139]
[1756330936715,2.19981703,4547.9,4547.8,0.31453139]
[1756330937024,2.19981703,4547.9,4547.8,0.77913139]
[1756330940703,2.19981703,4547.9,4547.8,1.68073139]
[1756330941319,0.001,4547.9,4547.8,1.68073139]
[1756330941820,2.19981703,4547.9,4547.8,1.68073139]
[1756330945123,0.001,4547.9,4547.8,1.68073139]
[1756330945418,2.19981703,4547.9,4547.8,1.68073139]
[1756330948030,0.001,4547.9,4547.8,1.68073139]
[1756330954038,0.001,4547.9,4547.8,5.50873139]
[1756330956739,0.001,4547.9,4547.8,7.70759677]
[1756330957116,0.001,4547.9,4547.8,5.50873139]
[1756330960544,0.001,4547.9,4547.8,7.70759677]
[1756330960759,0.001,4547.9,4547.8,5.50873139]
[1756330960954,0.001,4547.9,4547.8,5.04413139]
[1756330961945,0.001,4547.9,4547.8,5.50873139]
[1756330962979,0.001,4547.9,4547.8,5.05693139]
[1756330964148,0.001,4547.9,4547.8,5.52153139]
[1756330970796,0.001,4547.9,4547.8,7.72039677]
[1756330971266,0.001,4547.9,4547.8,5.52153139]
[1756330971661,0.001,4547.9,4547.8,5.05693139]
[1756330974194,0.001,4547.9,4547.8,5.49943139]
[1756330974696,0.001,4547.9,4547.8,7.69829677]
[1756330974858,0.001,4547.9,4547.8,10.69829677]
[1756330976264,0.001,4547.9,4547.8,10.78639077]
[1756330976678,0.001,4548.4,4547.9,5.99081703]
[1756330976883,0.001,4548.4,4548.3,3.10022366]
[1756330977079,0.001,4548.4,4548.3,7.22069759]
[1756330977279,0.001,4548.4,4548.3,7.65222366]
[1756330977789,0.001,4548.4,4548.3,10.65222366]
[1756330977962,0.001,4548.4,4548.3,10.90379771]
[1756330979495,1e-08,4548.4,4548.3,10.90379771]
[1756330979865,1e-08,4548.9,4548.8,2.99038199]
[1756330980095,1e-08,4548.9,4548.8,18.171938]
[1756330980259,1e-08,4548.9,4548.8,19.00157011]
[1756330980980,0.02,4549.8,4549.7,2.98994711]
[1756330981175,0.02,4549.8,4549.7,18.17049225]
[1756330981482,0.02,4549.8,4549.7,19.00013523]
[1756330981674,0.02,4549.8,4549.7,19.66055023]
[1756330982300,0.02,4550.8,4550.7,2.98946412]
[1756330982477,0.02,4550.8,4550.7,11.49846412]
[1756330982800,0.02,4550.8,4550.7,12.33906412]
[1756330985495,0.02,4550.8,4550.7,11.60806412]
[1756330986000,0.02,4550.8,4550.7,12.05800715]
[1756330987013,0.02,4550.8,4550.7,11.76750715]
[1756330987213,0.02,4550.8,4550.7,13.28079132]
[1756330988002,0.02,4550.8,4550.7,13.56929132]
[1756330991216,0.02,4550.8,4550.7,14.01179132]
[1756330991716,0.02,4550.8,4550.7,13.56929132]
[1756330993196,0.3213,4550.8,4550.7,4.96104303]
[1756330993416,0.3213,4550.8,4550.7,8.66644303]
[1756330993625,0.3213,4550.8,4550.7,9.45844303]
[1756330993809,0.7561,4550.8,4550.7,9.45844303]
[1756330994388,0.7561,4550.8,4550.7,8.66644303]
[1756330994589,0.02,4550.8,4550.7,10.61358733]
[1756330994789,0.02,4550.8,4550.7,13.25355145]
[1756330995218,0.02,4550.8,4550.7,13.34158445]
[1756330998246,0.02,4550.8,4550.7,12.47494015]
[1756330999225,0.02,4550.8,4550.7,8.65994015]
[1756330999397,0.02,4550.8,4550.7,12.47294015]
[1756331001828,0.3125,4550.8,4550.7,11.74094015]
[1756331003419,0.3125,4550.8,4550.7,11.85054015]
[1756331003928,0.02,4550.8,4550.7,19.24692827]
[1756331004136,0.02,4550.8,4550.7,20.65173567]
[1756331004619,0.02,4550.8,4550.7,20.54213567]
[1756331005518,0.02,4550.8,4550.7,18.68842827]
[1756331005895,0.02,4550.8,4550.7,19.13732827]
[1756331006100,0.02,4550.8,4550.7,18.68742827]
[1756331006297,0.02,4550.8,4550.7,19.13632827]
[1756331006514,0.021,4550.8,4550.7,19.13632827]
[1756331008004,0.021,4550.8,4550.7,7.42484015]
[1756331008206,0.7582,4550.8,4550.7,1.85144303]
[1756331008411,0.7582,4550.8,4550.7,5.66144303]
[1756331008636,1.05374753,4550.8,4550.7,5.66144303]
[1756331008942,2.95561583,4550.8,4550.7,1.69]
[1756331009234,2.95561583,4550.8,4550.7,5.5]
[1756331010133,2.95561583,4550.8,4550.7,1.69]
[1756331010299,2.95561583,4550.8,4550.7,5.5]
[1756331010498,3.47091176,4550.8,4550.7,5.5]
[1756331012905,2.19754735,4550.6,4550.5,0.792]
[1756331013146,2.19754735,4550.6,4550.5,4.602]
[1756331013314,2.93474735,4550.6,4550.5,4.602]
[1756331013636,2.93474735,4550.6,4550.5,0.792]
[1756331013935,3.50159326,4550.6,4550.5,4.602]
[1756331014737,3.50159326,4550.6,4550.5,4.7116]
[1756331015541,3.50159326,4550.6,4550.5,0.9016]
[1756331015729,3.50159326,4550.6,4550.5,4.7116]
[1756331016743,3.50159326,4550.6,4550.5,0.1096]
[1756331016920,2.19809816,4549.4,4549.1,1.69]
[1756331017116,0.2925,4549.2,4549.1,2.482]
[1756331017435,0.2925,4549.2,4549.1,6.4016]
[1756331017640,0.2925,4549.2,4549.1,7.062293]
[1756331017937,0.2925,4549.2,4549.1,6.270293]
[1756331018135,0.2925,4549.2,4549.1,7.062293]
[1756331018358,0.2925,4549.2,4549.1,6.270293]
[1756331018705,0.2925,4549.2,4549.1,7.062293]
[1756331019138,0.2925,4549.2,4549.1,2.460293]
[1756331019340,0.7372,4549.2,4549.1,6.269293]
[1756331019641,2.93538869,4549.2,4549.1,7.061293]
[1756331019806,3.44873253,4549.2,4549.1,7.061293]
[1756331020644,3.44873253,4549.2,4549.1,7.062293]
[1756331021745,3.44873253,4549.2,4549.1,7.061293]
[1756331022328,3.44873253,4549.2,4549.1,3.252293]
[1756331022645,3.44873253,4549.2,4549.1,7.061293]
[1756331023024,3.44873253,4549.2,4549.1,3.252293]
[1756331023356,3.44873253,4549.2,4549.1,5.499]
[1756331024142,3.44873253,4549.2,4549.1,5.503]
[1756331024344,3.44873253,4549.2,4549.1,1.694]
[1756331024543,3.44873253,4549.2,4549.1,5.503]
[1756331025251,3.44873253,4549.2,4549.1,0.004]
[1756331025552,3.47620988,4549.2,4549.1,0.004]
[1756331025758,3.44873253,4549.2,4549.1,0.004]
[1756331028857,3.47620988,4549.2,4549.1,0.004]
[1756331030754,2.19823701,4549.1,4548.8,0.024]
[1756331030969,2.30793366,4548.9,4548.8,0.024]
[1756331031165,2.60193366,4548.9,4548.8,0.024]
[1756331031371,3.05073366,4548.9,4548.8,0.024]
[1756331032179,3.07821283,4548.9,4548.8,0.024]
[1756331032489,4.1340214,4548.9,4548.8,0.024]
[1756331038577,3.6852214,4548.9,4548.8,0.024]
[1756331041993,3.5756214,4548.9,4548.8,0.024]
[1756331042192,4.0244214,4548.9,4548.8,0.024]
[1756331042790,3.5756214,4548.9,4548.8,0.024]
[1756331043762,4.37728774,4548.9,4548.6,0.004]
[1756331043962,5.19843032,4548.7,4548.6,0.004]
[1756331044376,5.94123032,4548.7,4548.6,0.004]
[1756331045192,5.49243032,4548.7,4548.6,0.004]
[1756331046194,5.94123032,4548.7,4548.6,0.004]
[1756331046373,7.34689391,4548.7,4548.6,0.004]
[1756331047495,5.14846359,4548.7,4548.1,0.004]
[1756331047688,2.19857532,4548.4,4548.1,0.004]
[1756331047999,2.22605751,4548.4,4548.1,0.004]
[1756331048193,3.48617169,4548.4,4548.1,0.004]
[1756331052007,3.59577169,4548.4,4548.1,0.004]
[1756331052572,6.59577169,4548.4,4548.1,0.004]
[1756331052820,6.5682895,4548.4,4548.1,0.004]
[1756331060699,0.001,4549.1,4548.4,0.792]
[1756331060996,0.001,4549.1,4549.0,1.0954]
[1756331061411,0.001,4549.1,4549.0,1.533]
[1756331061716,0.001,4549.1,4549.0,1.621099]
[1756331065729,0.001,4549.1,4549.0,5.423099]
[1756331068217,0.001,4549.1,4549.0,5.422099]
[1756331069245,0.001,4549.1,4549.0,5.334]
[1756331069807,0.001,4549.1,4549.0,1.533]
[1756331070118,0.001,4549.1,4549.0,5.334]
[1756331070821,0.001,4549.1,4549.0,5.4436]
[1756331071832,0.001,4549.1,4549.0,1.6426]
[1756331072035,0.001,4549.1,4549.0,5.4426]
[1756331072348,0.001,4549.1,4549.0,5.333]
[1756331072507,0.001,4549.1,4549.0,4.541]
[1756331075122,0.001,4549.1,4549.0,4.54]
[1756331075625,0.001,4549.1,4549.0,5.332]
[1756331075825,0.001,4549.1,4549.0,5.4416]
[1756331078572,0.001,4549.1,4549.0,1.6426]
[1756331078869,0.001,4549.1,4549.0,5.4416]
[1756331080021,0.001,4549.1,4549.0,8.41483787]
[1756331080464,0.001,4549.1,4549.0,9.07545987]
[1756331085928,0.001,4549.1,4549.0,5.27645987]
[1756331086247,0.001,4549.1,4549.0,9.07245987]
[1756331089765,0.001,4549.1,4549.0,5.27645987]
[1756331089968,0.001,4549.1,4549.0,9.07145987]
[1756331091275,0.001,4549.1,4549.0,5.27645987]
[1756331091447,0.001,4549.1,4549.0,9.07145987]
[1756331093342,0.001,4549.1,4549.0,9.07045987]
[1756331096485,0.001,4549.1,4549.0,5.27645987]
[1756331096662,0.001,4549.1,4549.0,8.63285987]
[1756331097755,0.001,4549.1,4549.0,9.06205987]
[1756331098679,0.001,4549.1,4549.0,8.63285987]
[1756331098876,0.001,4549.1,4549.0,9.06205987]
[1756331099077,0.001,4549.1,4549.0,8.63285987]
[1756331099291,0.001,4549.1,4549.0,7.55350733]
[1756331099807,0.001,4549.1,4549.0,7.86670733]
[1756331099987,0.317,4549.1,4549.0,0.770222]
[1756331100175,0.768,4549.1,4549.0,4.599]
[1756331100365,0.768,4549.1,4549.0,5.483]
[1756331100981,0.317,4549.1,4549.0,5.483]
[1756331101194,0.317,4549.1,4549.0,8.47328533]
[1756331102097,0.317,4549.1,4549.0,6.275]
[1756331102669,0.317,4549.1,4549.0,6.274]
[1756331102869,0.317,4549.1,4549.0,2.482]
[1756331103392,0.317,4549.1,4549.0,6.274]
[1756331104505,0.317,4549.1,4549.0,8.47228533]
[1756331104870,0.317,4549.1,4549.0,6.274]
[1756331105070,0.317,4549.1,4549.0,8.47228533]
[1756331105710,0.317,4549.1,4549.0,8.47128533]
[1756331106101,0.001,4549.1,4549.0,8.47128533]
[1756331106492,0.001,4549.1,4549.0,8.78448533]
[1756331106896,0.001,4549.1,4549.0,8.87257533]
[1756331107726,0.001,4549.1,4549.0,9.30177533]
[1756331108424,0.001,4549.1,4549.0,8.87257533]
[1756331109729,0.001,4549.1,4549.0,4.76837533]
[1756331109930,0.001,4549.1,4549.0,8.55937533]
[1756331110243,0.001,4549.1,4549.0,9.41137533]
[1756331110445,0.001,4549.1,4549.0,10.57234969]
[1756331110732,0.001,4549.1,4549.0,10.57134969]
[1756331110936,0.001,4549.1,4549.0,10.14214969]
[1756331111095,0.001,4549.1,4549.0,10.57134969]
[1756331112352,0.001,4549.1,4549.0,4.87797533]
[1756331112527,0.317,4549.1,4549.0,8.66797533]
[1756331116034,0.001,4549.1,4549.0,8.98117533]
[1756331116952,0.317,4549.1,4549.0,4.87797533]
[1756331117135,0.001,4549.1,4549.0,8.66697533]
[1756331117632,0.2872,4549.1,4549.0,8.66697533]
[1756331118355,0.001,4549.1,4549.0,8.66697533]
[1756331120438,0.001,4549.1,4549.0,8.66597533]
[1756331121156,0.001,4549.1,4549.0,9.42537533]
[1756331121358,0.001,4549.1,4549.0,10.58774814]
[1756331127763,0.001,4549.1,4549.0,10.75238813]
[1756331127983,0.001,4549.1,4549.0,13.75238813]
[1756331135376,0.001,4549.1,4549.0,13.74838813]
[1756331136772,0.001,4549.1,4549.0,13.63878813]
[1756331138702,0.001,4549.1,4549.0,13.19058813]
[1756331138889,0.001,4549.1,4549.0,13.63878813]
[1756331139606,0.001,4549.1,4549.0,13.19058813]
[1756331140304,0.001,4549.1,4549.0,13.63878813]
[1756331142675,0.2872,4549.1,4549.0,3.25272999]
[1756331142884,0.7415,4549.1,4549.0,4.94272999]
[1756331143080,0.7415,4549.1,4549.0,11.71501532]
[1756331143405,0.2872,4549.1,4549.0,11.71501532]
[1756331143783,0.001,4549.1,4549.0,11.71501532]
[1756331143982,0.001,4549.1,4549.0,12.02621532]
[1756331144215,0.001,4549.1,4549.0,11.71501532]
[1756331145621,0.001,4549.1,4549.0,12.02621532]
[1756331145816,0.001,4549.1,4549.0,14.11463217]
[1756331146112,0.001,4549.1,4549.0,14.56283217]
[1756331146618,0.001,4549.1,4549.0,14.11463217]
[1756331146814,0.001,4549.1,4549.0,14.22423217]
[1756331148593,0.001,4549.1,4549.0,14.05959218]
[1756331149522,0.001,4549.1,4549.0,10.27759218]
[1756331149724,0.001,4549.1,4549.0,14.05859218]
[1756331150722,0.3088,4549.1,4549.0,11.65897533]
[1756331150916,0.001,4549.1,4549.0,11.65897533]
[1756331151534,0.3088,4549.1,4549.0,11.65897533]
[1756331152014,0.001,4549.1,4549.0,11.97007533]
[1756331154000,0.001,4549.1,4549.0,11.96907533]
[1756331154832,0.001,4549.1,4549.0,12.40077533]
[1756331155031,0.001,4549.1,4549.0,14.52664818]
[1756331156023,0.001,4549.1,4549.0,14.09494818]
[1756331156225,0.001,4549.1,4549.0,14.52664818]
[1756331158841,0.001,4549.1,4549.0,13.78284818]
[1756331159012,0.3088,4549.1,4549.0,10.00384818]
[1756331159337,0.3088,4549.1,4549.0,11.65697533]
[1756331159634,0.001,4549.1,4549.0,11.96807533]
[1756331160019,0.001,4549.1,4549.0,11.96707533]
[1756331160535,0.001,4549.1,4549.0,8.18907533]
[1756331160747,0.001,4549.1,4549.0,11.65597533]
[1756331160916,0.001,4549.1,4549.0,13.75053818]
[1756331161448,0.001,4549.1,4549.0,14.06163818]
[1756331162159,0.001,4549.1,4549.0,14.49333818]
[1756331162641,0.001,4549.1,4549.0,14.66141196]
[1756331162806,0.001,4549.1,4549.0,10.88341196]
[1756331163142,0.001,4549.1,4549.0,14.66141196]
[1756331163543,0.001,4549.1,4549.0,14.22971196]
[1756331163846,0.001,4549.1,4549.0,14.66141196]
[1756331165345,0.001,4549.1,4549.0,14.22971196]
[1756331165514,0.001,4549.1,4549.0,13.91861196]
[1756331168974,0.001,4549.1,4549.0,13.91661196]
[1756331170561,0.001,4549.1,4549.0,10.14061196]
[1756331170759,0.7604,4549.1,4549.0,11.82204911]
[1756331171270,0.3088,4549.1,4549.0,11.82204911]
[1756331171854,0.001,4549.1,4549.0,11.82204911]
[1756331172487,0.3088,4549.1,4549.0,11.82204911]
[1756331172875,0.001,4549.1,4549.0,11.82204911]
[1756331173979,0.3088,4549.1,4549.0,8.04604911]
[1756331174179,0.7604,4549.1,4549.0,11.82104911]
[1756331174750,0.3088,4549.1,4549.0,11.82104911]
[1756331175378,0.3088,4549.1,4549.0,17.3622008]
[1756331175758,0.001,4549.1,4549.0,17.6733008]
[1756331175958,0.001,4549.1,4549.0,19.70363739]
[1756331176170,0.001,4549.1,4549.0,20.13533739]
[1756331177242,0.001,4549.1,4549.0,19.70363739]
[1756331178177,0.001,4549.1,4549.0,20.15193739]
[1756331178380,0.001,4549.1,4549.0,19.70363739]
[1756331180662,0.001,4549.1,4549.0,20.15193739]
[1756331181246,0.001,4549.1,4549.0,20.04233739]
[1756331182684,0.001,4549.1,4549.0,19.28293739]
[1756331182987,0.001,4549.1,4549.0,19.57283739]
[1756331183354,0.001,4549.1,4549.0,20.02113739]
[1756331184681,0.001,4549.1,4549.0,19.87113739]
[1756331184886,0.001,4549.1,4549.0,19.95920839]
[1756331188461,0.001,4549.1,4549.0,19.95620839]
[1756331190180,0.001,4549.1,4549.0,19.50790839]
[1756331190381,0.001,4549.1,4549.0,19.95620839]
[1756331191187,0.001,4549.1,4549.0,19.61750839]
[1756331191716,0.001,4549.1,4549.0,20.06580839]
[1756331200145,0.001,4549.1,4549.0,20.06280839]
[1756331202042,0.2986,4549.1,4549.0,12.7332718]
[1756331202343,0.001,4549.1,4549.0,18.0314718]
[1756331202560,0.2986,4549.1,4549.0,13.5252718]
[1756331202724,0.2986,4549.1,4549.0,17.2932718]
[1756331203234,0.2986,4549.1,4549.0,13.5252718]
[1756331203435,0.2986,4549.1,4549.0,17.2932718]
[1756331203631,1e-08,4549.1,4549.0,19.53233549]
[1756331203843,0.001,4549.6,4549.5,5.99004374]
[1756331204039,0.001,4549.6,4549.5,15.29919543]
[1756331204244,0.2986,4549.6,4549.5,15.40879543]
[1756331204454,0.001,4549.6,4549.5,15.69869543]
[1756331204751,0.001,4550.1,4550.0,5.98980219]
[1756331204956,0.001,4550.1,4550.0,16.98895388]
[1756331205119,0.001,4550.1,4550.0,17.72715388]
[1756331205320,0.001,4550.1,4550.0,17.83675388]
[1756331205552,0.001,4550.1,4550.0,18.27825388]
[1756331205858,0.001,4550.1,4550.0,20.22741757]
[1756331206973,0.001,4551.3,4550.7,2.98946412]
[1756331207174,0.001,4551.3,4550.7,15.41816075]
[1756331207376,0.001,4551.3,4551.2,12.63121361]
[1756331207545,0.001,4551.3,4551.2,18.19781361]
[1756331207739,0.001,4551.3,4551.2,18.51221361]
[1756331208168,0.021,4551.8,4551.5,2.98907788]
[1756331208378,0.021,4551.8,4551.5,6.87661317]
[1756331208573,0.001,4551.8,4551.5,10.63537788]
[1756331208742,1e-08,4552.8,4552.4,0.792]
[1756331209059,2.19506555,4555.7,4553.7,2.98801642]
[1756331209386,0.4625,4555.4,4553.7,18.93072687]
[1756331209675,0.4625,4555.1,4554.1,2.98782354]
[1756331209849,0.4625,4555.1,4554.1,9.75482354]
[1756331210040,0.4625,4555.1,4554.1,10.63412354]
[1756331210242,0.4625,4555.1,4554.7,2.98753428]
[1756331210549,0.4825,4555.8,4554.7,18.19512518]
[1756331210746,0.4825,4555.8,4554.7,14.74352518]
[1756331210956,0.4825,4555.8,4554.7,18.50952518]
[1756331211547,0.02,4555.8,4554.7,18.50952518]
[1756331211749,0.3158,4554.8,4554.7,18.19512518]
[1756331211974,0.4825,4555.8,4555.7,2.98705235]
[1756331212273,0.02,4555.8,4555.7,14.31804325]
[1756331212449,0.3158,4555.8,4555.7,18.08304325]
[1756331212645,0.3158,4555.8,4555.7,18.19264325]
[1756331212875,0.3158,4555.8,4555.7,18.30224325]
[1756331213560,0.1096,4557.3,4555.9,0.792]
[1756331213759,0.4625,4556.7,4556.6,7.4339909]
[1756331213972,0.7583,4556.7,4556.6,12.9975909]
[1756331214285,0.7583,4556.7,4556.6,12.9965909]
[1756331214638,0.7583,4556.7,4556.6,6.3546]
[1756331215464,0.7583,4556.7,4556.6,2.5906]
[1756331215659,1.05557292,4556.7,4556.6,6.3546]
[1756331216270,0.7583,4556.7,4556.6,6.3546]
[1756331216471,0.7583,4556.7,4556.6,6.3536]
[1756331216843,0.7583,4556.7,4556.6,6.51735559]
[1756331217585,0.7583,4556.7,4556.6,7.17698559]
[1756331217777,0.7583,4556.7,4556.6,3.41398559]
[1756331217977,0.7583,4556.7,4556.6,7.17698559]
[1756331218773,0.7583,4556.7,4556.6,7.01323]
[1756331219179,2.19446663,4557.0,4556.6,7.01323]
[1756331219349,0.2958,4556.7,4556.6,3.25023]
[1756331219552,2.65678638,4557.3,4556.6,6.3526]
[1756331219756,2.65679145,4557.3,4556.6,6.3526]
[1756331219960,0.1096,4557.4,4556.6,6.3526]
[1756331219961,0.7583,4556.7,4556.6,3.25023]
[1756331220162,0.7583,4556.7,4556.6,7.01223]
[1756331220455,0.7583,4556.7,4556.6,3.25023]
[1756331220802,1.05557976,4556.7,4556.6,3.41803992]
[1756331220953,1.05557976,4556.7,4556.6,7.18003992]
[1756331221292,3.25015039,4556.7,4556.6,7.18003992]
[1756331221518,3.25015039,4556.7,4556.6,3.41803992]
[1756331222008,1.05557976,4556.7,4556.6,7.18003992]
[1756331222201,0.7583,4556.7,4556.6,7.18003992]
[1756331222605,2.95287063,4556.7,4556.6,7.17903992]
[1756331223117,0.7583,4556.7,4556.6,3.41803992]
[1756331223319,0.7583,4556.7,4556.6,7.17903992]
[1756331223881,2.95287063,4556.7,4556.6,2.481]
[1756331224397,2.19471512,4556.4,4556.3,0.1096]
[1756331224605,2.22214905,4556.4,4556.3,0.1096]
[1756331224806,2.98044905,4556.4,4556.3,3.761]
[1756331225141,2.19490781,4556.0,4555.9,1.688]
[1756331225314,2.49070781,4556.0,4555.9,5.449]
[1756331225522,3.06280781,4556.0,4555.9,5.449]
[1756331226927,3.06280781,4556.0,4555.9,5.448]
[1756331227307,3.06380781,4556.0,4555.9,5.448]
[1756331228398,2.30550781,4556.0,4555.9,5.448]
[1756331229425,2.30550781,4556.0,4555.9,6.24]
[1756331229617,0.1106,4556.0,4555.9,6.24]
[1756331230612,2.60130781,4556.0,4555.9,6.24]
[1756331230820,3.06380781,4556.0,4555.9,6.24]
[1756331231001,2.19495599,4555.9,4555.7,0.792]
[1756331231336,2.19500417,4555.8,4555.7,0.792]
[1756331231497,2.60040417,4555.8,4555.7,4.552]
[1756331231700,2.19510383,4555.6,4555.4,0.792]
[1756331232001,2.95344872,4555.5,4555.4,0.792]
[1756331232231,2.95344872,4555.5,4555.4,4.552]
[1756331232695,2.95344872,4555.5,4555.4,0.792]
[1756331232898,2.95344872,4555.5,4555.4,4.552]
[1756331234635,2.95344872,4555.5,4555.4,4.551]
[1756331234830,2.95344872,4555.5,4555.4,0.792]
[1756331235031,3.06304872,4555.5,4555.4,4.551]
[1756331235414,2.30474872,4555.5,4555.4,4.551]
[1756331235617,0.4054,4555.5,4555.4,0.792]
[1756331235816,3.06304872,4555.5,4555.4,4.551]
[1756331236017,2.60054872,4555.5,4555.4,0.792]
[1756331236214,0.001,4556.0,4555.4,0.792]
[1756331236215,0.001,4556.0,4555.4,1.7976]
[1756331236448,0.001,4556.0,4555.5,0.792]
[1756331236604,2.1959402,4556.0,4555.7,0.792]
[1756331236807,2.1959402,4556.0,4555.9,0.792]
[1756331237008,2.19510053,4555.6,4555.5,0.792]
[1756331237208,2.95100053,4555.6,4555.5,0.792]
[1756331237409,0.7559,4555.6,4555.5,4.6606]
[1756331237654,0.3034,4555.6,4555.5,4.6606]
[1756331237825,2.19591031,4556.0,4555.5,5.3798]
[1756331238025,0.001,4556.0,4555.5,4.9498]
[1756331238236,0.001,4556.0,4555.7,0.792]
[1756331238407,0.001,4556.0,4555.8,3.759]
[1756331238611,0.001,4556.0,4555.9,0.2892]
[1756331239214,2.19590781,4556.0,4555.9,0.2892]
[1756331240114,0.001,4556.0,4555.9,0.2892]
[1756331240552,0.001,4556.0,4555.9,4.0482]
[1756331241776,2.19590781,4556.0,4555.9,4.0482]
[1756331242362,2.19590781,4556.0,4555.9,3.8982]
[1756331243027,0.001,4556.0,4555.9,4.6902]
[1756331243624,0.001,4556.0,4555.9,5.349949]
[1756331245646,0.001,4556.0,4555.9,5.348949]
[1756331246181,0.001,4556.0,4555.9,8.348949]
[1756331246385,0.001,4556.0,4555.9,8.778949]
[1756331246596,0.001,4556.0,4555.9,12.08266882]
[1756331246752,0.001,4556.0,4555.9,10.97390499]
[1756331248645,0.001,4556.0,4555.9,10.54390499]
[1756331248861,0.001,4556.0,4555.9,8.348949]
[1756331249047,0.001,4556.0,4555.9,9.88415599]
[1756331250186,0.001,4556.0,4555.9,7.6892]
[1756331251689,0.001,4556.0,4555.9,3.9312]
[1756331251893,0.001,4556.0,4555.9,7.6882]
[1756331252066,0.001,4556.0,4555.9,9.88315599]
[1756331253164,0.001,4556.0,4555.9,9.74395599]
[1756331253493,0.3044,4556.0,4555.9,6.757]
[1756331253662,0.3044,4556.0,4555.9,7.549]
[1756331253862,0.3044,4556.0,4555.9,3.792]
[1756331254060,0.3044,4556.0,4555.9,7.549]
[1756331254292,0.001,4556.0,4555.9,7.549]
[1756331254495,0.3044,4556.0,4555.9,3.792]
[1756331254695,0.3044,4556.0,4555.9,7.549]
[1756331254870,0.001,4556.0,4555.9,10.03315599]
[1756331255075,0.001,4556.0,4555.9,10.46315599]
[1756331255599,0.001,4556.0,4555.9,10.57275599]
[1756331259504,0.001,4556.0,4555.9,9.85255599]
[1756331259666,0.001,4556.0,4555.9,10.14175599]
[1756331260382,0.001,4556.0,4555.9,10.57175599]
[1756331261801,0.001,4556.0,4555.9,10.14175599]
[1756331261986,0.001,4556.0,4555.9,10.57175599]
[1756331262186,0.001,4556.0,4555.9,6.81575599]
[1756331262395,0.001,4556.0,4555.9,10.57175599]
[1756331262939,0.001,4556.0,4555.9,6.81575599]
[1756331263069,0.001,4556.0,4555.9,10.57175599]
[1756331265375,0.001,4556.0,4555.9,10.46215599]
[1756331265567,0.001,4556.0,4555.9,10.57175599]
[1756331266405,0.001,4556.0,4555.9,10.65971199]
[1756331267325,0.001,4556.0,4555.9,10.22971199]
[1756331267530,0.001,4556.0,4555.9,12.17983717]
[1756331267829,0.001,4556.0,4555.9,10.22871199]
[1756331268218,0.001,4556.0,4555.9,6.47371199]
[1756331268421,0.001,4556.0,4555.9,10.22871199]
[1756331270940,0.001,4556.0,4555.9,6.47371199]
[1756331271139,0.001,4556.0,4555.9,6.18451199]
[1756331271335,0.001,4556.0,4555.9,9.93951199]
[1756331271497,0.001,4556.0,4555.9,10.23541199]
[1756331271911,0.3032,4556.0,4555.9,9.93951199]
[1756331272439,0.001,4556.0,4555.9,9.93951199]
[1756331273140,0.001,4556.0,4555.9,6.18451199]
[1756331273338,0.001,4556.0,4555.9,9.93851199]
[1756331279308,0.001,4556.0,4555.9,6.18451199]
[1756331279509,0.001,4556.0,4555.9,9.93751199]
[1756331279840,0.001,4556.0,4555.9,6.18451199]
[1756331280020,0.001,4556.0,4555.9,9.93751199]
[1756331282312,0.001,4556.0,4555.9,11.62551199]
[1756331289546,0.001,4556.0,4555.9,7.87251199]
[1756331289842,0.001,4556.0,4555.9,11.62451199]
[1756331291579,0.001,4556.0,4555.8,0.024]
[1756331291580,2.19590781,4556.0,4555.8,0.024]
[1756331291747,0.21959078,4555.9,4555.8,0.024]
[1756331291941,0.001,4556.0,4555.8,3.776]
[1756331292175,0.001,4556.0,4555.8,0.004]
[1756331292550,2.22334415,4556.0,4555.9,4.486]
[1756331292763,2.19590781,4556.0,4555.9,4.486]
[1756331293076,2.19495599,4555.9,4555.8,0.004]
[1756331293258,2.63404237,4555.9,4555.8,0.004]
[1756331293461,2.83699383,4555.9,4555.8,0.004]
[1756331293778,2.19514872,4555.5,4555.4,0.004]
[1756331293977,2.42553953,4555.5,4555.4,0.004]
[1756331294336,2.1951969,4555.4,4555.3,0.004]
[1756331294585,2.19538968,4555.0,4554.9,0.004]